[Event "German Bundesliga 2021-22"]
[Site "Germany"]
[Date "2022.04.30"]
[Round "5.10"]
[White "Kryvoruchko, Yuriy"]
[Black "Svane, Rasmus"]
[Result "1/2-1/2"]
[ECO "A29"]
[WhiteElo "2683"]
[BlackElo "2637"]
[Annotator "TA"]
[PlyCount "138"]
[EventDate "2022.03.05"]
[EventType "team-tourn"]
[EventCountry "GER"]
[SourceTitle "playchess.com"]
[Source "ChessBase"]
[SourceQuality "1"]
[TimeControl "40/5400+30:1800+30"]

{[%evp 15,138,0,6,12,12,14,16,20,25,14,17,20,51,12,54,33,27,33,32,-13,-10,-75,-66,-64,-75,-70,-82,-94,-70,-76,-52,-104,-91,-93,-78,-71,-78,-110,-108,-89,-71,-70,-70,-71,-71,-78,-77,-77,-81,-81,-81,-79,-79,-82,-89,-134,-134,-134,-134,-129,-87,-91,-91,-110,-91,-114,-80,-81,-86,-81,-80,-81,-82,-90,-50,-94,-91,-94,-54,-94,-94,-94,-94,-94,-94,-94,-94,-94,-94,-94,-94,-101,-101,-164,-101,-157,-130,-130,-130,-130,-128,-157,-157,-157,-73,-73,-73,-73,-73,-73,-73,-73,-73,-73,-73,-73,-73,-73,-73,-73,-73,-73,-73,-73,0]} 1. c4 {[%emt 0:00:00]} Nf6 {[%emt 0:00:00]} 2. Nc3 {[%emt 0:00:00]} e5 {[%emt 0:00:00]} 3. Nf3 {[%emt 0:00:00]} Nc6 {[%emt 0:00:00]} 4. g3 {[%emt 0:00:00]} d5 {[%emt 0:00:00]} 5. cxd5 {[%emt 0:00:00]} Nxd5 {[%emt 0:00:00]} 6. Bg2 {[%emt 0:00:00]} Bc5 {[%emt 0:00:00]} 7. O-O {[%emt 0:00:00]} O-O {[%emt 0:00:00]} 8. d3 {[%emt 0:00:00]} h6 {[%emt 0:00:00]} 9. Nxd5 {[%emt 0:00:00] A29: English Opening: Four Knights Variation with 4 g3.} Qxd5 {[%emt 0:00:00]} 10. Bd2 {[%emt 0:00:00] [#]} Qe6 $146 {[%emt 0:14:53]} ({Predecessor:} 10... a5 11. Bc3 Qe6 12. Nd2 a4 13. Nc4 f6 14. Rc1 Rd8 15. Qd2 Qe7 16. Qc2 Ra6 17. Bxc6 bxc6 {1-0 (34) Sevian,S (2684)-Robson,R (2676) Saint Louis 2022}) 11. Qc2 {[%emt 0:01:37] The position is equal.} Bd6 {[%emt 0:06:45]} 12. Bc3 {[%emt 0:03:27]} a5 {[%emt 0:07:25]} 13. a3 {[%emt 0:20:25]} Bd7 {[%emt 0:13:25]} 14. Rac1 {[%emt 0:04:24]} Ra6 {[%emt 0:13:11]} 15. Rfd1 {[%emt 0:05:56]} Re8 {[%emt 0:02:52]} 16. e3 {[%emt 0:06:11]} Qg6 {[%emt 0:06:59]} 17. Qe2 {[%emt 0:24:20]} Qh5 {[%emt 0:03:44]} 18. Qc2 {[%emt 0:18:22]} (18. e4 $1 $11 {remains equal.}) 18... Bg4 $17 {[%emt 0:03:21]} 19. Nd2 {[%emt 0:00:04]} Bxd1 {[%emt 0:00:36]} 20. Rxd1 {[%emt 0:00:03]} b5 {[%emt 0:06:40]} 21. Rc1 {[%emt 0:02:55]} Rb8 {[%emt 0:02:52]} 22. Ne4 {[%emt 0:01:17]} b4 {[%emt 0:04:57]} 23. axb4 {[%emt 0:00:41]} (23. Nxd6 $15 bxc3 24. Nc4) 23... Nxb4 {[%emt 0:00:44]} ({Much worse is} 23... Bxb4 $6 24. Bxb4 Nxb4 25. Qxc7 $11) 24. Bxb4 {[%emt 0:03:16]} Bxb4 {[%emt 0:04:09]} 25. Qxc7 {[%emt 0:01:58]} Rab6 {[%emt 0:00:21]} 26. h3 {[%emt 0:02:42]} Qf5 {[%emt 0:02:12]} 27. Qa7 {[%emt 0:01:36]} Bf8 {[%emt 0:01:50]} 28. Qxa5 {[%emt 0:01:27]} Rxb2 {[%emt 0:00:11]} 29. Qd5 {[%emt 0:03:09]} R2b5 {[%emt 0:01:50]} 30. Qc4 {[%emt 0:00:11]} Rb1 {[%emt 0:00:45]} 31. Rxb1 {[%emt 0:00:39]} Rxb1+ {[%emt 0:00:06]} 32. Kh2 {[%emt 0:00:03]} Qd7 {[%emt 0:01:39]} 33. Qc3 {[%emt 0:01:19]} Qb5 {[%emt 0:01:18]} 34. d4 {[%emt 0:00:37]} Rb3 {[%emt 0:01:50][%cal Bb1b3,Bb3b2,Bb2c2][%mdl 32]} 35. Qc8 {[%emt 0:00:28]} exd4 {[%emt 0:00:37]} 36. exd4 {[%emt 0:00:03]} Qb8 {[%emt 0:01:14]} 37. Qd7 {[%emt 0:00:17][%cal Oe4f6]} Rb2 {[%emt 0:00:48]} 38. h4 {[%emt 0:00:29]} Rc2 {[%emt 0:00:47]} 39. Qf5 {[%emt 0:00:33][%cal Oe4f6]} Qc8 {[%emt 0:00:45]} 40. Qd5 {[%emt 0:01:15]} Qc4 {[%emt 0:01:05]} 41. Qf5 {[%emt 0:00:00][%cal Oe4f6]} g6 {[%emt 0:00:00]} 42. Qe5 {[%emt 0:01:02]} Qe6 {[%emt 0:00:00]} 43. h5 {[%emt 0:07:12]} Qxe5 {[%emt 0:08:45]} (43... g5 {is more complex.} 44. Nf6+ Kh8 45. Ng4+ Qxe5 46. dxe5 Rd2) 44. dxe5 {[%emt 0:00:04][%mdl 4096] Endgame KRB-KBN} g5 {[%emt 0:08:52]} 45. Bh3 {[%emt 0:10:30]} Re2 {[%emt 0:05:46]} 46. Bf5 {[%emt 0:02:36]} Kg7 {[%emt 0:01:56][%cal Of8c5]} 47. Kg2 {[%emt 0:00:04] [#]} Bc5 $1 {[%emt 0:02:54]} 48. Kf1 {[%emt 0:07:08]} ({Don't go for} 48. Nxc5 $2 Rxe5 49. Ne4 Rxf5 $19) 48... Rc2 {[%emt 0:00:12]} 49. e6 {[%emt 0:00:02]} fxe6 {[%emt 0:00:58]} 50. Bxe6 {[%emt 0:00:04]} Bd4 {[%emt 0:00:29]} 51. Bd5 {[%emt 0:00:33]} Kf8 {[%emt 0:00:53]} 52. Bb3 {[%emt 0:00:28]} Rb2 {[%emt 0:00:08]} 53. Bc4 {[%emt 0:00:04]} Ke7 {[%emt 0:00:18]} 54. Bg8 {[%emt 0:04:05]} (54. f3 $17 {was worth a try.}) 54... Rb5 {[%emt 0:01:24]} (54... g4 $19 55. Bc4 Rb4) 55. Bc4 {[%emt 0:00:14]} (55. g4 $142) 55... Re5 {[%emt 0:00:40]} 56. Nd2 {[%emt 0:02:40]} Ba7 {[%emt 0:02:06]} 57. Be2 {[%emt 0:00:54]} Ke6 {[%emt 0:01:23]} 58. Bd1 {[%emt 0:01:23]} Rb5 {[%emt 0:00:40] Hoping for ...Rb2.} 59. Be2 {[%emt 0:00:09]} Rb2 {[%emt 0:00:35]} ({Better is} 59... Rb8 60. Bg4+ Kd5) 60. Nf3 {[%emt 0:00:15] Black is better.} Kf5 {[%emt 0:00:47] White must now prevent ...g4.} 61. Nh2 {[%emt 0:00:01] Inhibits g4.} Kf6 {[%emt 0:01:17]} 62. Ng4+ {[%emt 0:00:02]} Kg7 {[%emt 0:00:10]} 63. Bf3 {[%emt 0:00:17]} Bd4 {[%emt 0:00:41]} 64. Be4 {[%emt 0:00:26]} Rb3 {[%emt 0:00:36]} 65. Ke2 {[%emt 0:00:15]} Ra3 {[%emt 0:00:10]} 66. Kf1 {[%emt 0:00:07]} Ra4 {[%emt 0:00:17]} 67. Bf5 {[%emt 0:00:42]} Bc5 {[%emt 0:00:28]} 68. Ke2 {[%emt 0:00:15]} Ra5 {[%emt 0:00:14][%cal Oc5f2]} 69. Bg6 {[%emt 0:00:18]} Ra4 {[%emt 0:00:26] Weighted Error Value: White=0.13 (very precise) /Black=0.10 (very precise)} (69... Ra2+ $17 70. Kf3 Bb6) 1/2-1/2

[Event "German Bundesliga 2021-22"]
[Site "Germany"]
[Date "2022.04.30"]
[Round "5.10"]
[White "Bluebaum, Matthias"]
[Black "Rabiega, Robert"]
[Result "1-0"]
[ECO "D07"]
[WhiteElo "2642"]
[BlackElo "2505"]
[Annotator "TA"]
[PlyCount "113"]
[EventDate "2022.03.05"]
[EventType "team-tourn"]
[EventCountry "GER"]
[SourceTitle "playchess.com"]
[Source "ChessBase"]
[SourceQuality "1"]
[TimeControl "40/5400+30:1800+30"]

{[%evp 15,113,9,16,18,10,11,14,0,0,-11,145,34,71,70,67,24,63,61,46,58,60,45,41,0,104,79,79,88,74,79,77,72,87,52,63,40,115,97,130,106,128,139,114,107,120,137,176,168,185,188,193,186,216,208,351,358,340,343,316,274,270,259,252,119,133,134,130,127,117,128,120,132,108,116,132,135,133,142,148,129,133,134,180,196,213,90,89,89,97,90,90,86,106,86,270,252,374,362,266,219]} 1. d4 {[%emt 0:00:00]} d5 {[%emt 0:00:00]} 2. c4 {[%emt 0:00:00]} Nc6 {[%emt 0:00:00]} 3. Nc3 {[%emt 0:00:00]} Nf6 {[%emt 0:00:00]} 4. Nf3 {[%emt 0:00:00]} dxc4 {[%emt 0:00:00]} 5. e4 {[%emt 0:00:00]} Bg4 {[%emt 0:00:00]} 6. Be3 {[%emt 0:00:00]} e6 {[%emt 0:00:00]} 7. Bxc4 {[%emt 0:00:00]} Bb4 {[%emt 0:00:00]} 8. Qc2 {[%emt 0:00:00]} O-O {[%emt 0:00:00]} 9. Rd1 {[%emt 0:00:00] D07: Queen's Gambit: Chigorin Defence.} Bxf3 {[%emt 0:19:00]} 10. gxf3 {[%emt 0:00:00]} Nh5 {[%emt 0:01:30] [#]} 11. h4 $5 $146 {[%emt 0:06:00][%mdl 8] The position is equal. An interesting novelty.} ({Predecessor:} 11. a3 Ba5 12. Rg1 Qh4 13. Bb5 Qxh2 14. Ke2 f5 15. Bxc6 bxc6 16. Kd3 Qh3 17. exf5 Qxf5+ {0-1 (34) Yuffa,D (2587)-Krasenkow,M (2597) Tornelo INT 2021}) 11... Qf6 {[%emt 0:18:30] Prevents f4.} 12. Be2 {[%emt 0:15:30]} e5 $2 {[%emt 0:25:30]} (12... Nf4 $11) 13. Bg5 {[%emt 0:07:30]} ({Only move:} 13. dxe5 $16 Nxe5 14. Bg5) 13... Qd6 {[%emt 0:00:00]} (13... Nxd4 $2 14. Rxd4 $1 {[%mdl 512]} Bxc3+ 15. bxc3 $18) 14. dxe5 {[%emt 0:02:30]} Qxe5 {[%emt 0:02:00]} 15. a3 {[%emt 0:00:30]} (15. Kf1 $5 {[%cal Rc3d5]}) 15... Bd6 {[%emt 0:07:30]} 16. Nd5 $1 {[%emt 0:01:30]} Rae8 {[%emt 0:05:01]} 17. Be3 {[%emt 0:05:30] A strong pair of Bishops.} Nf6 $1 {[%emt 0:05:50]} 18. Rg1 {[%emt 0:11:30][%cal Bh1g1,Bg1g5,Bg5b5][%mdl 32] aiming for f4.} Kh8 $1 {[%emt 0:05:14]} 19. Rg5 {[%emt 0:01:30]} Qe6 {[%emt 0:00:07]} (19... Qh2 $1 $11) 20. Nxf6 {[%emt 0:03:30]} Qxf6 {[%emt 0:00:38]} 21. f4 $1 {[%emt 0:00:00] Strongly threatening e5.} Qe6 {[%emt 0:02:03]} (21... Bxf4 $2 22. Rf5 Qxh4 23. Rxf4 $18 (23. Bxf4 g6 $18)) 22. Bf3 {[%emt 0:13:00]} (22. Qc3 f6 23. Rh5 g6 $15) 22... f6 {[%emt 0:02:06]} 23. Rb5 {[%emt 0:03:30]} Nd8 {[%emt 0:00:12]} 24. h5 {[%emt 0:02:30]} b6 {[%emt 0:02:08]} 25. h6 {[%emt 0:00:30] And now hxg7+ would win.} gxh6 {[%emt 0:03:00]} ({Better is} 25... g6 $14) 26. Rh5 $1 $16 {[%emt 0:02:30]} Nf7 {[%emt 0:01:26]} 27. Qc3 {[%emt 0:00:30]} Bc5 {[%emt 0:00:45]} 28. Bxc5 {[%emt 0:04:30]} bxc5 {[%emt 0:00:05]} 29. Rxc5 {[%emt 0:01:30]} (29. Qxc5 Nd6 30. Rd4 (30. Qxa7 $2 Nxe4 31. Qe3 Ng3 $19) 30... Qa2 $11) 29... Nd6 {[%emt 0:00:31]} 30. Rd4 {[%emt 0:00:30]} (30. Rxc7 Nb5 31. Rdd7 Qxd7 $1 32. Rxd7 Nxc3 33. bxc3 h5 $15) 30... Rf7 {[%emt 0:01:47]} 31. a4 {[%emt 0:01:30]} (31. Rxc7 $2 Nb5 32. f5 (32. Rc6 $2 Qh3 $19) 32... Nxc3 $19) 31... Qh3 {[%emt 0:00:23]} 32. Rh5 $1 {[%emt 0:01:34]} Qe6 {[%emt 0:00:12]} (32... Nxe4 $2 33. Rxh3 Nxc3+ 34. Kf1 $18) 33. Kd2 {[%emt 0:01:15] Black must now prevent e5.} (33. Rxh6 $6 Qf5 $16) 33... Rb8 {[%emt 0:00:17]} 34. Kc2 {[%emt 0:00:59] Inhibits Rb3.} (34. Rxh6 c5 35. Qxc5 Rxb2+ 36. Ke1 (36. Kc1 Qa2) 36... Rg7 $17) 34... Kg7 {[%emt 0:00:54]} (34... Ne8 $142 35. Qc4 (35. Rxh6 c5 $11) 35... Qe7) 35. e5 $18 {[%emt 0:04:26]} Nf5 {[%emt 0:00:44]} 36. Rd3 {[%emt 0:01:22] Bd5 is the strong threat.} Ne7 {[%emt 0:00:27] Against Bd5} 37. Be4 {[%emt 0:02:17]} (37. Qxc7 $2 Rc8 38. Qxc8 (38. exf6+ $2 Rxf6 39. Qxc8 Qxc8+ $19) 38... Qxc8+ $19) 37... f5 {[%emt 0:00:34]} 38. Bg2 {[%emt 0:01:13]} (38. Qxc7 $2 Rc8 39. Rg3+ Kh8 40. Qxc8+ Qxc8+ $19) (38. Rg3+ $6 Kf8 39. Bf3 (39. Qxc7 $2 Rc8 $19) 39... Rg7 $16) 38... Kh8 {[%emt 0:00:31]} 39. Rdh3 {[%emt 0:00:36]} (39. Qxc7 Rg8 40. Rd8 Rfg7 $11) (39. b3 $18 {is more deadly.}) 39... Qa2 {[%emt 0:00:30]} 40. Rxh6 {[%emt 0:08:37]} Qxa4+ {[%emt 0:00:00]} 41. b3 {[%emt 0:00:00] White threatens e6+ and mate.} Qa2+ {[%emt 0:00:00]} 42. Kc1 $1 {[%emt 0:00:00] Threatening mate with e6+.} Qa3+ {[%emt 0:00:00]} 43. Kb1 {[%emt 0:00:00]} (43. Qb2 Qc5+ 44. Qc3 Qb4 $14) 43... Qb4 {[%emt 0:00:00] [#]} 44. Bf1 $1 $36 {[%emt 0:01:11][%cal Bg2f1,Bf1c4,Bc4e6,Be6f5,Bf5e4][%mdl 2080] Keeping Black busy. 0x0.0007b5a3b0e1dp-1022s more active pieces.} ({Not} 44. Qxc7 $2 Rc8 45. Qd7 (45. Qxa7 $2 Qe1+ 46. Ka2 Rc2+ 47. Ka3 Qa1+ 48. Kb4 Qxa7 $19) 45... Qe1+ 46. Ka2 Qxf2+ 47. Ka3 Qxg2 $19) 44... Qxc3 {[%emt 0:00:00]} 45. Rxc3 {[%emt 0:00:30]} Ng6 {[%emt 0:00:00]} 46. Bc4 {[%emt 0:00:30]} Re7 {[%emt 0:02:05]} 47. Rh5 {[%emt 0:01:30]} Rf8 {[%emt 0:00:30]} 48. Rf3 {[%emt 0:01:30]} Rg7 {[%emt 0:04:30]} (48... c6 $16 49. Bd3 a5) 49. Be6 {[%emt 0:04:30]} Ne7 {[%emt 0:00:30]} 50. Rfh3 {[%emt 0:00:00]} (50. Kc2 $18) 50... Ng6 $16 {[%emt 0:03:30]} 51. Bxf5 {[%emt 0:06:00]} Nxf4 {[%emt 0:00:30]} 52. Rxh7+ {[%emt 0:00:30]} Rxh7 {[%emt 0:00:00]} 53. Rxh7+ {[%emt 0:00:30] KRB-KRN} Kg8 {[%emt 0:00:00]} 54. Be4 {[%emt 0:02:30]} Nd5 {[%emt 0:01:30] [#]} 55. Rh3 $1 $18 {[%emt 0:01:44]} c6 {[%emt 0:00:30]} (55... Nb6 $142 56. f3 Rd8) 56. Rg3+ {[%emt 0:00:33]} Kh8 {[%emt 0:00:30]} 57. Rf3 {[%emt 0:00:43] Weighted Error Value: White=0.14 (very precise) /Black=0.25 (precise)} 1-0

[Event "German Bundesliga 2021-22"]
[Site "Germany"]
[Date "2022.04.30"]
[Round "5.10"]
[White "Nagy, Gabor"]
[Black "Nguyen, Thai Dai Van"]
[Result "1/2-1/2"]
[ECO "D45"]
[WhiteElo "2530"]
[BlackElo "2613"]
[Annotator "TA"]
[PlyCount "60"]
[EventDate "2022.03.05"]
[EventType "team-tourn"]
[EventCountry "GER"]
[SourceTitle "playchess.com"]
[Source "ChessBase"]
[SourceQuality "1"]
[TimeControl "40/5400+30:1800+30"]

{[%evp 14,60,0,0,1,0,0,0,0,0,-7,-13,-8,0,0,0,0,0,0,0,15,7,39,0,22,18,18,0,10,11,3,0,0,0,0,0,0,0,0,-10,-8,-34,-27,-23,0,0,43,38,99]} 1. c4 {[%emt 0:00:00]} e6 {[%emt 0:00:00]} 2. Nc3 {[%emt 0:00:00]} d5 {[%emt 0:00:00]} 3. d4 {[%emt 0:00:00]} c6 {[%emt 0:00:00]} 4. e3 {[%emt 0:00:00]} Nf6 {[%emt 0:00:00]} 5. Nf3 {[%emt 0:00:00]} Nbd7 {[%emt 0:00:00]} 6. Be2 {[%emt 0:00:00]} Bd6 {[%emt 0:00:00]} 7. O-O {[%emt 0:00:00]} O-O {[%emt 0:00:00]} 8. b3 {[%emt 0:00:00]} b6 {[%emt 0:00:00] D45: Semi-Slav: 5 e3.} 9. Bb2 {[%emt 0:00:00]} Bb7 {[%emt 0:00:00]} 10. Bd3 {[%emt 0:00:16]} Re8 {[%emt 0:08:01] The position is equal.} 11. e4 {[%emt 0:07:31] [#] Hoping for e5.} dxc4 {[%emt 0:17:37]} 12. bxc4 {[%emt 0:00:18] aiming for e5.} (12. Bxc4 {keeps more tension.} b5 13. e5 bxc4 14. exd6 cxb3 15. Re1) 12... e5 {[%emt 0:00:24] Black wants to play ...exd4.} 13. d5 {[%emt 0:00:11] [#]} a6 $146 {[%emt 0:01:44]} ({Predecessor:} 13... Nc5 14. Re1 Qd7 15. Bf1 Ba6 16. Nd2 cxd5 17. cxd5 Bxf1 18. Nxf1 b5 19. Ng3 b4 {0-1 (37) Javakhishvili,L (2479)-Santos Latasa,J (2639) Salamanca 2021}) 14. a4 {[%emt 0:09:53]} Nc5 {[%emt 0:12:08]} 15. Bc2 {[%emt 0:01:20]} Qc7 {[%emt 0:08:28]} 16. Qe2 {[%emt 0:01:04]} Rad8 {[%emt 0:03:56]} 17. Rfd1 {[%emt 0:02:24]} Bc8 {[%emt 0:03:09]} 18. Nd2 {[%emt 0:01:12]} (18. dxc6 {with more complications.} Bg4 19. a5 bxa5 20. Nd5) 18... Bg4 {[%emt 0:00:55]} 19. f3 {[%emt 0:00:20]} Bd7 {[%emt 0:00:21]} 20. g3 {[%emt 0:06:21]} cxd5 {[%emt 0:08:18]} 21. cxd5 {[%emt 0:01:04]} b5 {[%emt 0:00:09]} 22. axb5 {[%emt 0:00:35]} axb5 {[%emt 0:00:05]} 23. Kg2 {[%emt 0:00:58]} Rb8 {[%emt 0:02:35] Strongly threatening ...b4.} 24. Rdc1 {[%emt 0:01:12]} Rec8 {[%emt 0:04:10]} 25. Nd1 {[%emt 0:03:25]} Qb7 {[%emt 0:06:37]} 26. Ne3 {[%emt 0:04:55]} Ne8 {[%emt 0:01:07]} 27. Rab1 {[%emt 0:02:29]} Ra8 {[%emt 0:03:38]} 28. Bc3 {[%emt 0:06:36]} f6 {[%emt 0:00:25]} 29. Ndc4 {[%emt 0:02:58]} Na4 {[%emt 0:03:33]} 30. Bd2 {[%emt 0:02:33]} ({Don't go for} 30. Nxd6 $2 {[#]} Nxc3 $1 {[%mdl 512]} 31. Qxb5 (31. Nxb7 $2 {is the wrong capture.} Nxe2 32. Rd1 Nd4 $19) 31... Qxb5 $19) 30... Qa6 {[%emt 0:04:35] Weighted Error Value: White=0.05 (flawless) /Black=0.07 (flawless)} (30... Qa7 $14) 1/2-1/2

[Event "German Bundesliga 2021-22"]
[Site "Germany"]
[Date "2022.04.30"]
[Round "5.11"]
[White "Fridman, Daniel"]
[Black "Koch, Thomas"]
[Result "1-0"]
[ECO "E46"]
[WhiteElo "2626"]
[BlackElo "2458"]
[Annotator "TA"]
[PlyCount "139"]
[EventDate "2022.03.05"]
[EventType "team-tourn"]
[EventCountry "GER"]
[SourceTitle "playchess.com"]
[Source "ChessBase"]
[SourceQuality "1"]
[TimeControl "40/5400+30:1800+30"]

{[%evp 14,139,10,8,24,9,13,8,4,6,39,25,44,43,56,27,80,82,83,72,79,79,85,76,123,75,91,61,109,101,111,41,37,41,52,44,45,45,91,95,100,103,89,84,92,92,77,70,88,68,85,75,112,101,116,85,93,0,60,58,61,75,65,77,77,0,0,0,66,51,85,41,27,6,8,0,0,0,0,0,0,0,52,42,57,55,62,57,80,73,74,118,461,351,588,588,587,587,29970,29971,9288,572,29979,29980,29980,29981,29979,29980,29980,29981,29981,29982,29982,29983,29983,29984,29984,29985,29985,29986,29990,29991,29991,29992,29994,29995,29995,29996]} 1. d4 {[%emt 0:00:00]} Nf6 {[%emt 0:00:00]} 2. c4 {[%emt 0:00:00]} e6 {[%emt 0:00:00]} 3. Nc3 {[%emt 0:00:00]} Bb4 {[%emt 0:00:00]} 4. e3 {[%emt 0:00:00]} O-O {[%emt 0:00:00]} 5. Bd2 {[%emt 0:00:00]} d5 {[%emt 0:00:00]} 6. Nf3 {[%emt 0:00:00]} c5 {[%emt 0:00:00]} 7. a3 {[%emt 0:07:25]} Bxc3 {[%emt 0:00:00]} 8. Bxc3 {[%emt 0:00:54]} cxd4 {[%emt 0:00:00] E51: Nimzo-Indian: Rubinstein: 4...0-0 5 Nf3 d5.} 9. Nxd4 {[%emt 0:01:41]} Re8 {[%emt 0:01:47]} 10. cxd5 {[%emt 0:05:09]} Nxd5 {[%emt 0:05:29] The position is equal.} 11. Rc1 {[%emt 0:08:23] [#]} a6 $146 {[%emt 0:22:44]} ({Predecessor:} 11... Bd7 12. Qb3 Nxc3 13. Rxc3 Nc6 14. Qxb7 Nxd4 15. exd4 Rb8 16. Qxa7 e5 17. d5 Rxb2 {0-1 (42) Kostlan,J (1974)-Palmqvist,F (2040) Stockholm 2013}) 12. Be2 {[%emt 0:03:07]} b6 {[%emt 0:06:12]} 13. O-O {[%emt 0:06:27]} Bb7 {[%emt 0:00:49]} 14. Bd2 {[%emt 0:05:08]} e5 {[%emt 0:02:05]} (14... Qf6 $11) 15. Nf5 $16 {[%emt 0:02:09]} Nc6 {[%emt 0:03:21]} 16. Qb3 {[%emt 0:12:57]} Nce7 {[%emt 0:08:57]} 17. Ng3 {[%emt 0:01:04] White is much more active.} Rc8 {[%emt 0:05:34]} 18. a4 {[%emt 0:09:38]} Qd6 {[%emt 0:05:49]} ({Black should try} 18... Rxc1 19. Rxc1 Nf6) 19. Bf3 {[%emt 0:03:44]} (19. Bc4 $142) 19... Qe6 {[%emt 0:07:59]} 20. Rfd1 {[%emt 0:06:20]} Red8 {[%emt 0:05:16]} (20... Rxc1 $14 {was preferrable.} 21. Bxc1 (21. Rxc1 Rd8 $14) 21... g6) 21. Rxc8 {[%emt 0:05:19]} Rxc8 {[%emt 0:01:36]} 22. e4 {[%emt 0:01:20]} (22. h3 $16) 22... Nf4 $14 {[%emt 0:01:41]} 23. Qxe6 {[%emt 0:00:07]} (23. Qb4 {with more complications.} a5 24. Qb5 Bc6 25. Qxb6 Bxa4 26. Qxe6 Nxe6 27. Ra1) 23... Nxe6 {[%emt 0:00:29]} 24. Bc3 {[%emt 0:03:35]} Nc6 {[%emt 0:04:17]} 25. Bg4 {[%emt 0:08:54] Bxe6 is the strong threat.} Rc7 {[%emt 0:02:15]} (25... Rd8 $14) 26. Bxe6 $16 {[%emt 0:04:29]} fxe6 {[%emt 0:00:07]} 27. f3 $1 {[%emt 0:00:41]} Kf7 {[%emt 0:02:29]} 28. Nf1 {[%emt 0:00:07]} b5 {[%emt 0:01:01]} 29. axb5 {[%emt 0:00:08]} axb5 {[%emt 0:00:05]} 30. b4 {[%emt 0:00:58]} Ke7 {[%emt 0:03:56]} 31. Kf2 {[%emt 0:02:25]} Rd7 {[%emt 0:00:23]} 32. Rc1 {[%emt 0:00:42]} Kf7 {[%emt 0:01:27]} 33. Nd2 {[%emt 0:00:20]} Ba8 {[%emt 0:01:56]} 34. Ra1 {[%emt 0:02:24]} Rd3 {[%emt 0:03:09]} 35. Rc1 {[%emt 0:00:06]} (35. Ra3 $16) 35... Nd4 {[%emt 0:00:44]} ({Better is} 35... Rd7 $1 $11) 36. Nf1 $14 {[%emt 0:01:30]} Kf6 {[%emt 0:01:11]} 37. h4 {[%emt 0:00:48]} Nb3 {[%emt 0:00:45]} 38. Rc2 {[%emt 0:00:07]} Nd4 {[%emt 0:00:08]} 39. Rc1 {[%emt 0:00:09]} (39. Bxd4 $5 exd4 40. Ng3 $14) 39... Nb3 $1 {[%emt 0:00:05]} 40. Rc2 {[%emt 0:00:04]} Nd4 {[%emt 0:00:13]} 41. Bxd4 {[%emt 0:00:00]} exd4 {[%emt 0:00:00][%mdl 4096] Endgame KRB-KRN} 42. Rc5 {[%emt 0:00:00]} Rb3 {[%emt 0:00:00]} 43. Rxb5 {[%emt 0:00:00] next Rb6 is good for White.} (43. Rc8 $5 {[%cal Rc8f8]} Rb2+ 44. Ke1 Rb1+ 45. Ke2 $11) 43... Rb2+ {[%emt 0:00:00]} 44. Kg3 {[%emt 0:00:00]} Bc6 {[%emt 0:00:00]} 45. Rb6 {[%emt 0:00:00]} Ba4 {[%emt 0:00:00]} 46. Kf4 {[%emt 0:01:14]} Rxg2 {[%emt 0:00:00]} 47. Rd6 {[%emt 0:06:48]} Rf2 {[%emt 0:06:30]} ({Black should play} 47... h6 $11 48. e5+ Kf7) 48. Ng3 {[%emt 0:00:04]} Bd1 {[%emt 0:04:18]} 49. Nh5+ $1 {[%emt 0:00:11]} Kg6 {[%emt 0:00:33] [#]} 50. Rxd4 $1 {[%emt 0:00:06]} Rxf3+ {[%emt 0:00:10]} (50... Bxf3 $2 51. Ke3 $1 Rf1 52. Ng3 $18) (50... Rf1 51. Ng3) 51. Ke5 {[%emt 0:00:06]} Kxh5 {[%emt 0:00:05]} 52. Rxd1 $16 {[%emt 0:00:05] KR-KR} Rb3 {[%emt 0:00:17][%mdl 8192] [#] Inhibits Rb1. Loses the game.} (52... Rc3 $16 {is more resistant.} 53. Kxe6 Rc4) 53. Rd4 $1 $18 {[%emt 0:04:40]} Kxh4 $2 {[%emt 0:00:50]} (53... g5 54. hxg5 Kxg5) 54. Kxe6 {[%emt 0:00:10]} Kg5 {[%emt 0:09:05]} 55. e5 {[%emt 0:02:16]} Re3 {[%emt 0:02:07]} 56. b5 {[%emt 0:04:47]} Rb3 {[%emt 0:01:25] [#]} 57. Rd5 $1 {[%emt 0:00:08] Kd7 would kill now.} h5 {[%emt 0:02:29]} 58. Kd7 {[%emt 0:00:34] White mates.} Re3 {[%emt 0:01:18]} 59. e6+ {[%emt 0:02:52]} Kf6 {[%emt 0:00:24]} 60. Rd6 {[%emt 0:01:09]} h4 {[%emt 0:00:34]} 61. b6 {[%emt 0:00:42]} h3 {[%emt 0:00:11]} 62. b7 {[%emt 0:00:07]} h2 {[%emt 0:00:13]} 63. b8=Q {[%emt 0:00:12]} h1=Q {[%emt 0:00:09] KQR-KQR} 64. e7+ {[%emt 0:02:40]} Kg5 {[%emt 0:00:45]} 65. Qb5+ {[%emt 0:00:51]} Kf4 {[%emt 0:01:06]} 66. Rd4+ {[%emt 0:00:20]} Kg3 {[%emt 0:00:09]} 67. Qg5+ {[%emt 0:00:17]} Kf2 {[%emt 0:00:11]} 68. Rd2+ {[%emt 0:00:26]} Re2 {[%emt 0:00:15]} 69. Rxe2+ {[%emt 0:00:06]} Kxe2 {[%emt 0:00:08]} 70. e8=Q+ {[%emt 0:00:06] Weighted Error Value: White=0.09 (flawless) /Black=0.49} 1-0